Cogmind - Beta 14 @@@ ROGUE MODE // 2024.12.05 @ 20:36:36 Player: SH-pl7 Result: Destroyed by G-50 Soldier with Heavy Laser Performance ------------- Evolutions (2) 1000 Regions Visited (4) 800 Robots Destroyed (100) 500 Value Destroyed (2312) 2312 Prototype IDs (2) 40 Alien Tech Used (0) 0 Bonus (204) 204 TOTAL SCORE: 4856 Bonus ------- High Alert Combat Kills 204 Cogmind --------- Core Integrity 0/550 Matter 300/300 Energy 100/100 System Corruption 2% Temperature Cool (9) Movement Walking (125) Location -8/Materials Parts ------- > --- POWER (1) -------- (None) > --- PROPULSION (3) --- Carbon-fiber Leg Titanium Leg > --- UTILITY (4) ------ Large Storage Unit Advanced Terrain Scan Processor Melee Analysis Suite Hardened Medium Armor Plating > --- WEAPON (3) ------- Mining Claw Scythe > --- INVENTORY (15) --- Aluminum Leg Large Storage Unit Advanced Visual Processing Unit Transmission Jammer Improved Light Armor Plating Improved Light Armor Plating Improved Light Armor Plating System Shield Thief Drone Bay Particle Gun Rocket Launcher Peak State ------------ > --- POWER ------------ Micro Nuclear Core > --- PROPULSION ------- Carbon-fiber Leg Carbon-fiber Leg Carbon-fiber Leg > --- UTILITY ---------- Advanced Heat Sink Large Storage Unit Improved Terrain Scanner Advanced Terrain Scan Processor > --- WEAPON ----------- Ion Cannon Ion Cannon Ion Cannon > --- INVENTORY -------- Titanium Leg Large Storage Unit Melee Analysis Suite Transmission Jammer Thief Drone Bay Ion Cannon Rocket Launcher Mining Claw [Rating: 37] Favorites ----------- Power Ion Engine Engine Ion Engine Power Core Micro Nuclear Core Propulsion Light Treads Treads Light Treads Leg Aluminum Leg Wheel Armored Wheel Utility Hacking Suite Device Transmission Jammer Storage Large Storage Unit Processor Advanced Terrain Scan Processor Hackware Hacking Suite Protection Hardened Medium Armor Plating Weapon Assault Rifle Energy Gun Spread Laser Energy Cannon Ion Cannon Ballistic Gun Assault Rifle Ballistic Cannon Heavy Assault Cannon Special Weapon Mining Laser Slashing Weapon Mining Claw Build | -11 -10 -10 -9 -8 ------- Run | Yrd Mat Min Mat Mat Slots Evolved 4 | . . . 2 2 Power . | . . . . . Propulsion 1 | . . . 1 . Utility 2 | . . . 1 1 Weapon 1 | . . . . 1 Parts Attached 67 | 7 3 3 18 36 Power 7 | 1 . . 2 4 Engine 3 | 1 . . 2 . Core 4 | . . . . 4 Reactor . | . . . . . Propulsion 24 | 2 2 2 6 12 Treads 5 | . 2 . . 3 Leg 16 | 2 . 2 3 9 Wheel 3 | . . . 3 . Hover . | . . . . . Flight . | . . . . . Utility 16 | 1 1 . 2 12 Device 7 | . . . 1 6 Storage 3 | 1 . . . 2 Processor 3 | . . . 1 2 Hackware 1 | . 1 . . . Protection 2 | . . . . 2 Artifact . | . . . . . Weapon 20 | 3 . 1 8 8 Energy Gun 4 | . . . 4 . Energy Cannon 5 | . . . . 5 Ballistic Gun 6 | 3 . . 3 . Ballistic Cannon 2 | . . 1 . 1 Launcher . | . . . . . Special Weapon 1 | . . . 1 . Impact Weapon . | . . . . . Slashing Weapon 2 | . . . . 2 Piercing Weapon . | . . . . . Special Melee Weapon . | . . . . . Unidentified Prototypes 2 | . . . 2 . Parts Lost 40 | . . 7 10 23 Power 6 | . . 1 1 4 Propulsion 15 | . . 3 5 7 Utility 6 | . . . 1 5 Weapon 13 | . . 3 3 7 Highest Loss Streak 7 | . . 7 3 5 To Critical Strikes . | . . . . . Average Slot Usage (%) 79 | . 86 98 73 74 Engine 5 | . 14 13 7 . Core 3 | . . . . 6 Treads 13 | . 23 27 . 13 Leg 7 | . 4 . 18 5 Device 5 | . . . 6 8 Storage 8 | . 14 14 3 7 Processor 7 | . . . 10 9 Hackware 5 | . 1 14 11 1 Protection 2 | . . . . 5 Energy Gun 1 | . . . 6 . Energy Cannon 3 | . . . . 6 Ballistic Gun 9 | . 28 26 7 1 Ballistic Cannon 2 | . . . . 4 Slashing Weapon 1 | . . . . 3 Peak Build Rating 37 | 6 9 10 17 37 Average Rating 18 | 4 6 9 12 27 On Entrance 7 | . 6 9 6 17 Naked Turns . | . . . . . Heaviest Build 53 | 14 14 14 12 53 Greatest Support 60 | 20 40 40 30 60 Greatest Overweight (x) 8 | 1 . 2 3 8 Average Overweight (x) . | . . . . . Largest Inventory Capacity 15 | 8 8 8 8 15 Average Capacity 10 | 6 8 8 5 13 Most Carried 13 | 6 8 8 5 13 Average Carried 7 | 3 7 7 3 9 Final Capacity 15 | 8 8 8 5 15 Final Carried 11 | 6 8 5 2 11 Class Distribution -------------------- 52% | Mutant 31% | Scavenger-Mutant 5% | Scavenger-Tank 4% | Scavenger-Skirmisher Dominant Class ---------------- Mutant | -10/Materials Mutant | -10/Mines Scavenger-Mutant | -9/Materials Scavenger-Mutant | -8/Materials Resources | -11 -10 -10 -9 -8 ----------- Run | Yrd Mat Min Mat Mat Matter Collected 1762 | 242 278 48 373 821 Remotely . | . . . . . Salvage Created 2702 | . 468 87 684 1463 Parts 191 | . 36 6 51 98 Haulers Intercepted 3 | . 1 . 2 . Recyclers Shooed 1 | . . . 1 . Parts Field Recycled . | . . . . . Retrieved Matter . | . . . . . Parts Self-Destructed . | . . . . . Prevented . | . . . . . Kills | -11 -10 -10 -9 -8 ------- Run | Yrd Mat Min Mat Mat Combat Hostiles Destroyed 66 | . 12 3 14 37 Melee 6 | . . . . 6 Guns 29 | . 12 3 13 1 Cannons 30 | . . . 1 29 Classes Destroyed 13 | . 6 . 3 4 Worker 9 | . 1 . 6 2 Builder 10 | . . . . 10 Tunneler 1 | . . . . 1 Hauler 3 | . 1 . 2 . Recycler 1 | . . . 1 . Operator 3 | . 1 . 2 . Watcher 7 | . 1 . 4 2 Swarmer 26 | . 6 1 5 14 Grunt 27 | . 6 2 6 13 Duelist 1 | . . . 1 . Sentry 10 | . . . 2 8 Hunter 1 | . . . . 1 Heavy 1 | . . . . 1 Best Kill Streak 13 | . 5 2 7 13 Combat Bots Only 10 | . 4 2 3 10 Max Kills in Single Turn 2 | . 2 1 2 2 Gunslinging 1 | . 1 . . . Exploded . | . . . . . Melee 1 | . . . . 1 Uniques/NPCs Destroyed . | . . . . . Combat | -11 -10 -10 -9 -8 -------- Run | Yrd Mat Min Mat Mat Hostile Shots Fired 519 | . 55 28 98 338 Missed 137 | . 17 4 32 84 Damage Taken 5788 | . 376 638 1088 3686 Core 905 | . 59 78 215 553 Absorbed by Shields . | . . . . . Core Remaining (%) 63 | 100 . 45 46 . Volleys Fired 234 | . 40 8 68 118 Largest 3 | . 2 2 2 3 Hottest 180 | . 40 40 130 180 Shots Fired 378 | . 80 14 112 172 Gun 216 | . 80 12 105 19 Cannon 155 | . . 2 . 153 Launcher . | . . . . . Special 7 | . . . 7 . Kinetic 240 | . 80 14 67 79 Thermal 138 | . . . 45 93 Explosive . | . . . . . Electromagnetic . | . . . . . Robot Hit Streak 11 | . 9 8 11 9 Robot Miss Streak 8 | . 2 1 8 4 Penetration Max 1 | . . . . 1 Secondary Targets 2 | . 2 . . . Max Gunslinging Chain 1 | . 1 . . . Shots Hit Robots 275 | . 51 11 82 131 Core Hits 147 | . 22 6 61 58 Critical Kills 1 | . . . . 1 Critical Parts Destroyed 1 | . 1 . . . Critical Strikes 8 | . 1 . . 7 Meltdown 1 | . . . . 1 Destroy 1 | . 1 . . . Blast 4 | . . . . 4 Sever 2 | . . . . 2 Melee Attacks 40 | . . . . 40 Impact . | . . . . . Slashing 40 | . . . . 40 Piercing . | . . . . . Sneak Attacks 1 | . . . . 1 Combat Hostiles . | . . . . . Follow-up Attacks . | . . . . . Damage Inflicted 6828 | . 661 146 1626 4395 Guns 2076 | . 660 112 1093 211 Cannons 3565 | . . 34 . 3531 Explosions 461 | . . . 461 . Melee 653 | . . . . 653 Ramming 1 | . 1 . . . Kinetic 3847 | . 660 146 726 2315 Thermal 2327 | . . . 900 1427 Explosive . | . . . . . Electromagnetic . | . . . . . Impact . | . . . . . Slashing 653 | . . . . 653 Piercing . | . . . . . Highest Corruption 2 | . . . . 2 Average Corruption 2 | . . . . 2 Corruption Purged . | . . . . . Corruption Blocked . | . . . . . Effects 4 | . . . . 4 Message Errors 1 | . . . . 1 Matter Fused 2 | . . . . 2 Data Loss (major) 1 | . . . . 1 Overload Shots . | . . . . . Overflow Damage 348 | . . . 168 180 Projectiles 145 | . . . . 145 Explosions 168 | . . . 168 . Melee 35 | . . . . 35 Knockbacks 9 | . . . . 9 Impact . | . . . . . Kinetic 7 | . . . . 7 Secondary 2 | . . . . 2 Self-Inflicted Damage 268 | . . . 268 . Shots 4 | . . . 4 . Rammed . | . . . . . Targets Rammed 1 | . 1 . . . Kicked 1 | . 1 . . . Crushed . | . . . . . Highest Temperature 445 | . 5 8 445 429 Average Temperature 84 | . 5 3 60 91 Received Heat Transfer 1761 | . 150 36 261 1314 Effects 2 | . . . 1 1 Shutdowns 2 | . . . 1 1 Siege Activations . | . . . . . Robots Corrupted 1 | . . . . 1 Combat Hostiles . | . . . . . Parts Fried 3 | . . . . 3 Impact Corruptions 1 | . . . . 1 Robots Melted 1 | . . . . 1 Combat Hostiles 1 | . . . . 1 Parts Melted 1 | . . . . 1 Heat Transferred 3319 | . . . 1025 2294 Parts Sabotaged . | . . . . . Parts Stolen . | . . . . . Parts Stripped . | . . . . . Power Chain Reactions . | . . . . . Alert | -11 -10 -10 -9 -8 ------- Run | Yrd Mat Min Mat Mat Peak Influence 767 | . 334 169 407 767 Initial 171 | . . 54 5 171 Average 248 | . 134 112 135 372 Maximum Alert Level 3 | . 1 . 2 3 Low Security (%) 52 | 100 69 100 58 31 Level 1 24 | . 30 . 36 25 Level 2 21 | . . . 4 40 Level 3 1 | . . . . 2 Level 4 . | . . . . . Level 5 . | . . . . . High Security . | . . . . . Max Security . | . . . . . Squads Dispatched 10 | . 2 . 3 5 Investigation 2 | . 1 . 1 . Extermination . | . . . . . Reinforcement 7 | . 1 . 2 4 Assault 1 | . . . . 1 Garrison . | . . . . . Intercept . | . . . . . Searches Triggered . | . . . . . Construction Impeded 1 | . . . . 1 Haulers Reinforced . | . . . . . Active Scanning Responses . | . . . . . Cargo Convoy Interrupts . | . . . . . Stealth | -11 -10 -10 -9 -8 --------- Run | Yrd Mat Min Mat Mat Distress Signals 6 | . 1 . 3 2 Communications Jammed . | . . . . . Distress Signals . | . . . . . Times Spotted 124 | . 21 12 28 63 Peak Tracking Total 8 | . 5 6 4 8 Tactical Retreats 12 | . . 2 2 8 Traps | -11 -10 -10 -9 -8 ------- Run | Yrd Mat Min Mat Mat Traps Triggered 3 | . 1 . 1 1 Indirectly . | . . . . . Trap Hack Attempts . | . . . . . Triggered . | . . . . . Disarmed . | . . . . . Reprogrammed . | . . . . . Reused . | . . . . . Traps Extracted . | . . . . . Installed . | . . . . . Triggered . | . . . . . Machines | -11 -10 -10 -9 -8 ---------- Run | Yrd Mat Min Mat Mat Machines Disabled 8 | . . . 7 1 Max in Single Turn 6 | . . . 6 1 Machines Repaired . | . . . . . Machines Dismantled . | . . . . . Machines Sabotaged . | . . . . . Overloaded Fab Kills . | . . . . . Hacking | -11 -10 -10 -9 -8 --------- Run | Yrd Mat Min Mat Mat Machines Accessed 5 | . 2 1 2 . Terminals 4 | . 2 . 2 . Fabricators . | . . . . . Repair Stations . | . . . . . Recycling Units . | . . . . . Scanalyzers . | . . . . . Garrison Access . | . . . . . Total Hacks 7 | . 2 1 4 . Successful 7 | . 2 1 4 . Failed . | . . . . . Catastrophic . | . . . . . Database Lockouts . | . . . . . Manual 5 | . 2 . 3 . Terminals 6 | . 2 . 4 . Fabricators . | . . . . . Repair Stations . | . . . . . Recycling Units . | . . . . . Scanalyzers . | . . . . . Garrison Access . | . . . . . Terminal Hacks 4 | . . 1 3 . Open Door 1 | . . 1 . . Unreport Threat 1 | . . . 1 . Locate Traps 2 | . . . 2 . Fabricator Hacks . | . . . . . Repair Station Hacks . | . . . . . Recycling Unit Hacks . | . . . . . Scanalyzer . | . . . . . Garrison Access Hacks . | . . . . . Unauthorized Hacks 3 | . 2 . 1 . Terminals 3 | . 2 . 1 . Botnet 3 | . 2 . 1 . Fabricators . | . . . . . Repair Stations . | . . . . . Recycling Units . | . . . . . Scanalyzers . | . . . . . Garrison Access . | . . . . . Data Cores Recovered . | . . . . . Used . | . . . . . Hacking Detections 2 | . 1 . 1 . Full Trace Events . | . . . . . Feedback Events . | . . . . . Feedback Blocked . | . . . . . Robot Schematics Acquired . | . . . . . Robots Built . | . . . . . Authchips . | . . . . . Time . | . . . . . Total Robot Build Rating . | . . . . . Part Schematics Acquired . | . . . . . Parts Built . | . . . . . Authchips . | . . . . . Time . | . . . . . Total Part Build Rating . | . . . . . Parts Repaired . | . . . . . Time . | . . . . . Parts Recycled . | . . . . . Recycled Matter . | . . . . . Retrieved Matter . | . . . . . Retrieved Components . | . . . . . Parts Scanalyzed . | . . . . . Part Schematics Acquired . | . . . . . Parts Damaged . | . . . . . Bothacking | -11 -10 -10 -9 -8 ------------ Run | Yrd Mat Min Mat Mat Used RIF Installer . | . . . . . Robots Hacked . | . . . . . Non-combat . | . . . . . Combat . | . . . . . Robot Hacks Applied . | . . . . . Relay Couplers Released . | . . . . . Fabnet Peak Effective % . | . . . . . Robots Rewired . | . . . . . Allies Hacked . | . . . . . Hacks Repelled . | . . . . . Allies | -11 -10 -10 -9 -8 -------- Run | Yrd Mat Min Mat Mat Total Allies 1 | . . 1 . . Largest Group 1 | . . 1 . . Highest-Rated Group 31 | . . 31 . . Highest-Rated Ally 31 | . . 31 . . Total Orders . | . . . . . Ally Attacks 2 | . . 2 . . Total Damage 21 | . . 21 . . Kills . | . . . . . Allies Corrupted . | . . . . . Allies Melted . | . . . . . Intel | -11 -10 -10 -9 -8 ------- Run | Yrd Mat Min Mat Mat Robot Analysis Total . | . . . . . Derelict Logs Recovered 1 | . . 1 . . Drone Launches . | . . . . . Drone Recoveries . | . . . . . Exploration | -11 -10 -10 -9 -8 ------------- Run | Yrd Mat Min Mat Mat Turns Passed 3570 | 68 460 466 792 1784 Spaces Moved 1672 | 47 205 267 469 684 Core 213 | 8 . 4 194 7 Treads 849 | . 158 259 . 432 Legs 501 | 39 47 4 240 171 Wheels 109 | . . . 35 74 Hover . | . . . . . Flight . | . . . . . Fastest Speed 50 | 50 120 120 50 90 Average Speed 149 | 110 150 159 110 174 Slowest Speed 450 | 120 160 160 200 450 Overloaded Moves . | . . . . . Propulsion Burnouts . | . . . . . Robots Hopped . | . . . . . Cave-ins Triggered . | . . . . . Exploration Rate (%) 42 | 4 40 58 50 58 Regions Visited 4 Branch Regions 1 Pre-discovered Areas 1 | . . 1 . . Known Exits Taken . | . . . . . Unknown Exits Taken 4 | 1 1 1 1 . Scrap Searched 1 | . . 1 . . Spaces Dug 4 | . . . . 4 Terrain Destroyed 96 | . . . 54 42 Melee 3 | . . . . 3 Projectile 40 | . . . 1 39 AOE 53 | . . . 53 . Terrain Rammed . | . . . . . Walls Destroyed . | . . . . . Machines Disabled . | . . . . . Actions | -11 -10 -10 -9 -8 --------- Run | Yrd Mat Min Mat Mat Total 2260 | 59 274 296 612 1019 Wait 201 | . 24 13 49 115 Move 1668 | 46 204 266 468 684 Hop . | . . . . . Pick Up 35 | 6 2 3 5 19 Fast Attach 35 | 6 1 . 11 17 Attach 25 | . . 3 7 15 Detach 2 | . . . . 2 Swap 7 | 1 2 . . 4 Drop 14 | . . 3 4 7 Fire 234 | . 40 8 68 118 Melee 38 | . . . . 38 Ram . | . . . . . Kick 1 | . 1 . . . Crush . | . . . . . Escape Stasis . | . . . . . Rewire . | . . . . . Trap . | . . . . . Miscellaneous . | . . . . . Route ------- -11/Scrapyard -10/Materials -10/Mines (discovered 2 exits: *Mat x2) -9/Materials (discovered 2 exits: [*Mat x2]) -8/Materials (discovered 1 exit: [*Fac]) History --------- Turn | Location | Event 12 | -11/Scrapyard | Discovered new exit (range 16) 69 | -11/Scrapyard | Entered Materials 309 | -10/Materials | Build established: Mutant 503 | -10/Materials | Discovered new exit (range 16) 529 | -10/Materials | Entered Mines 558 | -10/Mines | Found the Drone Emporium 565 | -10/Mines | Found Prototype Device 619 | -10/Mines | Discovered new exit (range 5) 806 | -10/Mines | Received a Mining Laser from a helpful Derelict 941 | -10/Mines | Assembled infested the area 957 | -10/Mines | Received a Rocket Launcher from a helpful Derelict 986 | -10/Mines | Discovered new exit (range 8) 994 | -10/Mines | Core integrity fell below 50% 995 | -10/Mines | Entered Materials 995 | -9/Materials | Evolved 2 slots: Propulsion x1, Utility x1 1024 | -9/Materials | Lost 7 parts (1p3n3w) 1129 | -9/Materials | Lost 3 parts (1p1n1w) 1276 | -9/Materials | Lost 3 parts (1n1u1w) 1492 | -9/Materials | Discovered new exit (range 18) 1643 | -9/Materials | Build established: Scavenger-Mutant 1745 | -9/Materials | Core integrity fell below 50% 1759 | -9/Materials | Discovered new exit (range 18) 1766 | -9/Materials | Lost 3 parts (3n) 1787 | -9/Materials | Entered another Materials area 1787 | -8/Materials | Evolved 2 slots: Utility x1, Weapon x1 1916 | -8/Materials | Lost 4 parts (1p2u1w) 2833 | -8/Materials | Discovered new exit (range 16) 2975 | -8/Materials | Lost 3 parts (2n1u) 3138 | -8/Materials | Lost 5 parts (1p2n2w) 3139 | -8/Materials | Destroyed 10 combat bots 3154 | -8/Materials | Core integrity fell below 50% 3198 | -8/Materials | Lost 3 parts (1p1n1w) 3242 | -8/Materials | Core integrity fell below 20% 3266 | -8/Materials | Lost 4 parts (1n2u1w) 3367 | -8/Materials | Build established: Mutant 3387 | -8/Materials | First assault squad dispatched 3571 | -8/Materials | Destroyed by G-50 Soldier with Heavy Laser Last Messages --------------- 03504_ Acquired Aluminum Leg. 03508_ K-01 Serf collects debris. 03513_ Acquired 55 matter. 03513_ U-05 Engineer builds a Wall. 03518_ T-07 Excavator destroyed. 03522_ Sneak attack on U-05 Engineer. 03522_ Destroyed Wheel. 03522_ U-05 Engineer destroyed. 03524_ Lgt. Nuclear Core destroyed. 03526_ K-01 Serf collects debris. 03534_ Y-45 Defender Lgt. Treads severed. 03537_ Y-45 Defender destroyed. 03545_ G-50 Soldier Carbon-fiber Leg severed. 03548_ G-50 Soldier destroyed. 03551_ K-01 Serf cleans the Terminal. 03553_ Destroyed Heat Sink. 03558_ Y-45 Defender destroyed. 03559_ Acquired 10 matter. 03567_ Aluminum Leg destroyed. 03568_ K-01 Serf collects debris. Map ----- +----------------------------------------------------+ | ?????????????????????????????????????????????????? | | ?????????????????????????????????????????????????? | | ?????????????????????????????????????????????????? | | ?????????????????????????????????????????????????? | | ?????????????????????????????????????????????????? | | ?????????????????????????????????????????????????? | | ?????????????????????????????????????????????????? | | ?????????????????????????????????????????????????? | | ?????????????????????????????????????????????????? | | ?????????????????????????????????????????????????? | | ?????????????????????????????????????????????????? | | ?????????????????????????????????????????????????? | | ?????????????????????????###?????????????????????? | | ????????????????????????##T#####?????????????????? | | ????????????????????????# ?????????????????? | | ????????????????????????# |= ??????????????????? | | ????????????????????????# %%* ??????????????????? | | ????????????????????????# ###################### | | ????????????????????????# #[ [[] ## | | ????????????????????????# # [[ ## ! | | ?????????? ##T########### # [[ ## | | ???????? # [! ]## | | ???????? =k#####+###### | | ???????? %!%% %##?#?###+#####+# | | ???????????###############g###### ######## ### | | ?????????????????????# [@%! ## # # ### [ | | ?????????????????????# ] %[""" ## # # ### !% | | ????????????????????# "T" ## # # ### ! | | ????????????????????##!!! " " ## # # ### | | ?????????????????????#!!! ## + # ##### # | | ?????????????????????#!!! ## # # ##### # | | ?????????????????????# i ## ##+##### ##### # | | ?????????????????????# *l ## #####^^ | | ?????????????????????##+###g##### #####^ | | ?????????????????????? ? # ##### #####^ | | ?????????????????????? ??+ =##### | | ?????????????????????? ??# #####+##### *#####= | | ????????????????????? ? ? #### ## [%#####*% | | ????????????????????? ?? #### ??##=![%%!*|!% | | ????????????????????? ? ? ##?# ##% %*=%=%#+# | | ??????????????????????????# #?## ## %[ !!#*! | | ??????##+#############??#?? ?### ## ^ +[ | | ??????# + #= ##? #### ## ##+##### | | ??????# # = # """ +? ### ## # ## | | ??????# # ]#? """ #??# ########## # ## ! | | ??????# # ] #? """ #?## #?######## # ## | | ??????# # = #? ?### #??####### # #### | | ####### # ??? ????# ##?####### # #### | | # ###+######/####### ########## # #### | | """"" # = % %*= ##?##### ########## | +----------------------------------------------------+ Best States ------------- Heat Dissipation 55 Energy Generation 15 Energy Capacity 250 Matter Stores 300 Matter Capacity 300 Sight Range 18 Terrain Scan Range 16 Terrain Scan Density 210 Armor Coverage 225 Evasion (%) 55 Melee Accuracy 5 Recoil Reduction 3 Offensive Hacking 10 Item Schematics ----------------- None Robot Schematics ------------------ None Fabricated ------------ Nothing Alien Tech Used ----------------- None Achievements -------------- None Challenges ------------ None Game ------ Seed DecoderSurveybotStripper Manual? 0 Play Time 00:31:01 Cumulative 106.6 hours Start 2024.12.05 @ 20:05:16 End 2024.12.05 @ 20:36:36 Sessions 1 Manual Loads 0 Difficulty Rogue Special Mode None Game No. 108 Rogue 108 Adventurer 0 Explorer 0 Win Type - Total 1 Types 1/0/0/0/0/0/0/0/0 Lore% 15 Gallery% 44 Achievement% 39 Wizard Run 0 Options --------- Layout 2 ASCII 0 Keyboard 0 Movement Mouse Keybinds 0 Fullscreen 2 Font 16/SmallcapsGlow Map View 55x47 Zoom Use 0% Tactical HUD 1 Map Filters NONE Filters NONE Steam 1 RUN: ec03cf98-a6a9-4bbc-8605-d6675601407f